bitfinex/quotes_SOLUSD_20241117
["timestamp","ask_amount","ask_price","bid_price","bid_amount"]
[1731845017368,0.1,234.92,234.79,10.6477]
[1731845017684,23.5046,234.97,234.79,10.6477]
[1731845017872,3.5046,234.97,234.79,10.6477]
[1731845018079,23.5046,234.97,234.79,10.6477]
[1731845018282,3.4051,234.94,234.79,10.6477]
[1731845018774,3.5051,234.94,234.79,10.6477]
[1731845019173,3.4051,234.94,234.79,10.6477]
[1731845019368,0.1,234.95,234.79,10.6477]
[1731845019884,3.4046,234.97,234.79,10.6477]
[1731845020184,3.4046,234.97,234.8,0.12549]
[1731845020983,3.4046,234.97,234.8,24.027864]
[1731845021282,3.4038,235.03,234.8,49.527864]
[1731845021461,3.4038,235.03,234.82,24.027864]
[1731845021882,2.9038,235.03,234.82,24.027864]
[1731845022072,2.9038,235.03,234.84,24.027864]
[1731845022276,2.9038,235.03,234.81,14.9056]
[1731845022277,0.4652843,235.05,234.86,24.027864]
[1731845022589,3.8688843,235.05,234.88,0.25098]
[1731845022976,3.8688843,235.05,234.88,24.027864]
[1731845023287,3.8688843,235.05,234.89,14.9005]
[1731845023586,3.8688843,235.05,234.9,0.12549]
[1731845024371,3.8688843,235.05,234.91,10.6423]
[1731845025313,3.8688843,235.05,234.92,0.12549]
[1731845025483,3.8687843,235.05,234.92,0.12549]
[1731845025795,3.8687843,235.05,234.93,9.1737]
[1731845027092,3.8687843,235.05,234.91,10.6423]
[1731845027399,3.8687843,235.05,234.88,4.2574]
[1731845027400,0.1,235.04,234.88,4.2574]
[1731845027579,0.4652843,235.05,234.88,4.2574]
[1731845027580,3.4038,235.03,234.88,4.2574]
[1731845028876,3.4038,235.03,234.88,14.9011]
[1731845029173,3.4038,235.03,234.9,10.6428]
[1731845029795,3.8687843,235.05,234.91,24.027864]
[1731845030100,0.4652843,235.05,234.92,0.12549]
[1731845030296,0.4652843,235.05,234.91,23.902374]
[1731845030297,3.4036,235.04,234.91,23.902374]
[1731845030902,0.4652843,235.05,234.92,0.12549]
[1731845031281,0.4652843,235.05,234.94,23.776884]
[1731845031491,0.4652843,235.05,234.95,0.25098]
[1731845032099,0.4652843,235.05,234.95,0.12549]
[1731845032480,0.4652843,235.05,234.94,0.12549]
[1731845032788,0.4652843,235.05,234.94,24.027864]
[1731845033290,0.4652843,235.05,234.96,24.027864]
[1731845033796,0.4652843,235.05,234.98,47.8068]
[1731845033992,0.4652843,235.05,234.99,24.027864]
[1731845035503,0.4652843,235.05,235.01,24.027864]
[1731845036686,0.4652843,235.05,235.01,49.527864]
[1731845037000,3.4015,235.19,235.01,49.527864]
[1731845037208,3.4015,235.19,235.01,55.28990896]
[1731845037391,20.0,235.23,235.01,55.28990896]
[1731845037592,3.401,235.22,235.03,25.5]
[1731845037895,3.401,235.22,235.04,49.527864]
[1731845039485,8.5021,235.24,235.05,14.8904]
[1731845039486,8.6021,235.24,235.05,14.8904]
[1731845039689,8.6021,235.24,235.06,0.25098]
[1731845039894,0.1,235.22,235.05,14.8904]
[1731845040092,20.0,235.23,235.05,14.8904]
[1731845041000,11.9036,235.22,235.06,0.12549]
[1731845041203,20.1,235.21,235.05,10.636]
[1731845042000,3.4013,235.2,235.05,10.636]
[1731845042604,3.4013,235.2,235.06,24.027864]
[1731845044001,8.5011,235.27,235.11,0.25098]
[1731845044002,3.4003,235.27,235.11,0.25098]
[1731845044193,3.4003,235.27,235.11,60.181064]
[1731845044793,0.4652843,235.28,235.14,24.027864]
[1731845044992,3.8655843,235.28,235.14,24.027864]
[1731845045599,0.4652843,235.28,235.14,49.527864]
[1731845046107,0.4652843,235.28,235.16,23.902374]
[1731845046303,0.4652843,235.28,235.16,24.027864]
[1731845047012,0.4652843,235.28,235.15,61.6471]
[1731845047013,0.4652843,235.28,235.19,24.027864]
[1731845047391,0.4652843,235.28,235.21,24.027864]
[1731845048015,0.4652843,235.28,235.21,23.902374]
[1731845048190,0.4652843,235.28,235.18,14.8821]
[1731845048389,0.4652843,235.28,235.19,23.776884]
[1731845049613,0.4652843,235.28,235.21,4.2515]
[1731845050217,0.4652843,235.28,235.22,0.12549]
[1731845050393,0.4652843,235.28,235.22,24.027864]
[1731845051289,0.4652843,235.28,235.21,14.8802]
[1731845051485,0.4652843,235.28,235.21,10.6287]
[1731845051710,3.8654843,235.28,235.18,4.252]
[1731845051895,0.4652843,235.28,235.18,14.8821]
[1731845052917,0.4652843,235.28,235.19,24.027864]
[1731845053098,0.4652843,235.28,235.19,19.01793255]
[1731845053587,0.4652843,235.28,235.21,0.12549]
[1731845055303,0.4652843,235.28,235.21,23.902374]
[1731845055509,0.4652843,235.28,235.21,24.027864]
[1731845055711,0.4652843,235.28,235.23,24.027864]
[1731845056826,0.4652843,235.28,235.25,0.25098]
[1731845057007,8.4941,235.46,235.25,24.027864]
[1731845057511,3.3978,235.44,235.25,24.027864]
[1731845058194,3.3965,235.54,235.36,24.027864]
[1731845058397,0.1,235.64,235.36,24.027864]
[1731845058398,0.1,235.61,235.36,31.265162]
[1731845058608,3.8620843,235.52,235.36,0.25098]
[1731845058908,3.8620843,235.52,235.38,0.12549]
[1731845059419,3.8620843,235.52,235.38,0.25098]
[1731845059721,3.8620843,235.52,235.37,10.6215]
[1731845059917,12.3538843,235.52,235.37,14.8701]
[1731845060299,3.8620843,235.52,235.38,23.902374]
[1731845060797,3.8620843,235.52,235.38,4.2483]
[1731845060999,3.8620843,235.52,235.38,0.12549]
[1731845061313,12.3538843,235.52,235.38,0.12549]
[1731845061515,20.0,235.51,235.38,0.25098]
[1731845061825,3.8620843,235.52,235.38,0.25098]
[1731845062399,3.8620843,235.52,235.4,0.12549]
[1731845062626,3.8620843,235.52,235.4,0.25098]
[1731845062916,0.1,235.45,235.26,8.4347]
[1731845063116,0.09367462,235.44,235.26,8.4347]
[1731845063328,0.2,235.45,235.26,8.4347]
[1731845063329,39.7,235.43,235.26,8.4347]
[1731845063616,20.1,235.43,235.26,8.4347]
[1731845063825,23.776884,235.42,235.26,8.4347]
[1731845064028,20.0,235.41,235.26,8.4347]
[1731845064625,3.3984,235.4,235.27,0.25098]
[1731845065316,23.3973,235.48,235.27,24.027864]
[1731845066216,3.3973,235.48,235.28,14.8758]
[1731845066415,3.3973,235.48,235.29,0.25098]
[1731845066620,20.0,235.47,235.29,0.25098]
[1731845066816,0.1,235.44,235.28,10.6256]
[1731845067026,20.0,235.45,235.26,12.6851]
[1731845067330,20.0,235.45,235.26,23.3116]
[1731845067825,48.477,235.48,235.26,23.3116]
[1731845068126,20.0,235.47,235.27,0.25098]
[1731845068301,3.3976,235.46,235.28,14.8758]
[1731845068622,3.3976,235.46,235.29,0.12549]
[1731845069613,3.3976,235.46,235.27,0.25098]
[1731845069813,3.3976,235.46,235.3,10.6247]
[1731845070121,20.0,235.44,235.3,10.6247]
[1731845070423,23.776884,235.43,235.3,10.6247]
[1731845070627,20.0,235.42,235.3,10.6247]
[1731845071229,11.8916,235.46,235.3,10.6247]
[1731845071230,3.3983,235.41,235.31,0.12549]
[1731845071524,3.3971,235.49,235.31,24.027864]
[1731845072121,11.89,235.49,235.31,0.12549]
[1731845072712,43.776884,235.48,235.31,0.12549]
[1731845072921,3.3971,235.49,235.31,24.027864]
[1731845073329,0.4652843,235.52,235.31,24.027864]
[1731845073535,3.3968,235.51,235.33,24.027864]
[1731845074830,0.09367462,235.5,235.32,10.6238]
[1731845075027,43.59604862,235.5,235.32,14.8733]
[1731845075328,20.0,235.47,235.28,21.2512]
[1731845075536,23.3974,235.47,235.28,21.2512]
[1731845075714,3.3974,235.47,235.28,21.2512]
[1731845077509,20.0,235.5,235.28,21.2512]
[1731845077510,3.3971,235.49,235.3,14.8745]
[1731845077712,20.0,235.47,235.31,24.027864]
[1731845079131,23.776884,235.46,235.3,14.8745]
[1731845079643,3.3977,235.45,235.3,10.6247]
[1731845080131,3.3968,235.51,235.3,10.6247]
[1731845080330,3.3968,235.51,235.31,22.1898]
[1731845080720,3.3968,235.51,235.32,24.027864]
[1731845081319,3.3968,235.51,235.34,24.027864]
[1731845082120,0.4652843,235.52,235.35,8.7722]
[1731845082435,3.3968,235.51,235.36,24.027864]
[1731845082729,0.4652843,235.52,235.36,24.027864]
[1731845083432,0.4652843,235.52,235.38,24.027864]
[1731845084722,0.4652843,235.52,235.4,24.027864]
[1731845084928,0.4652843,235.52,235.4,23.902374]
[1731845085434,3.8620843,235.52,235.39,37.0586]
[1731845085732,0.4652843,235.52,235.39,58.2999]
[1731845086917,0.4652843,235.52,235.4,23.902374]
[1731845087833,0.4652843,235.52,235.39,43.4311]
[1731845087834,0.4652843,235.52,235.41,14.8676]
[1731845088015,3.8620843,235.52,235.41,14.8676]
[1731845089350,0.4652843,235.52,235.44,0.12549]
[1731845090544,0.4652843,235.52,235.43,14.8663]
[1731845090734,3.8619843,235.52,235.39,22.1898]
[1731845090918,3.8619843,235.52,235.39,26.4379]
[1731845091616,0.4652843,235.52,235.39,79.5411]
[1731845092116,0.4652843,235.52,235.4,24.027864]
[1731845093246,0.4652843,235.52,235.42,24.027864]
[1731845095342,0.4652843,235.52,235.44,24.027864]
[1731845096341,0.4652843,235.52,235.48,23.902374]
[1731845096544,3.3949,235.65,235.48,24.027864]
[1731845097424,3.3949,235.65,235.5,24.027864]
[1731845097741,15.229842,235.73,235.5,24.027864]
[1731845098044,3.3938,235.72,235.5,24.027864]
[1731845098949,8.4838,235.75,235.5,24.027864]
[1731845098950,11.8772,235.75,235.54,24.027864]
[1731845099945,20.0,235.74,235.56,24.027864]
[1731845100338,3.3934,235.75,235.56,24.027864]
[1731845100846,0.19367462,235.74,235.56,0.12549]
[1731845101640,20.19367462,235.74,235.56,0.12549]
[1731845101940,30.45438,235.69,235.51,4.2459]
[1731845102133,43.776884,235.67,235.51,4.2459]
[1731845102936,20.0,235.64,235.5,10.6156]
[1731845103236,19.6,235.63,235.5,10.6156]
[1731845103634,20.0,235.62,235.5,10.6156]
[1731845104037,3.3954,235.61,235.43,14.8663]
[1731845104264,8.4868,235.66,235.43,14.8663]
[1731845104265,33.5977,235.69,235.46,0.1]
[1731845104425,19.6,235.7,235.46,30.8512911]
[1731845104926,0.09367462,235.69,235.46,30.8512911]
[1731845105126,19.6,235.68,235.46,13.8846241]
[1731845105325,19.69367462,235.67,235.47,0.25098]
[1731845105536,19.6,235.66,235.47,6.96990673]
[1731845105733,0.09367462,235.64,235.47,0.12549]
[1731845106024,0.09367462,235.64,235.43,36.104]
[1731845106025,3.3955,235.6,235.43,36.104]
[1731845106233,3.3955,235.6,235.44,6.84441673]
[1731845106441,8.7799,235.62,235.44,6.84441673]
[1731845106746,3.395,235.64,235.45,7.04020737]
[1731845106938,3.395,235.64,235.46,6.84441673]
[1731845107144,8.7799,235.68,235.47,31.06807137]
[1731845107145,3.3947,235.66,235.47,31.06807137]
[1731845107336,3.3947,235.66,235.48,6.84441673]
[1731845107537,3.3947,235.66,235.49,24.027864]
[1731845107847,3.3947,235.66,235.51,0.12549]
[1731845108027,3.3947,235.66,235.53,24.027864]
[1731845108228,3.3947,235.66,235.52,14.8607]
[1731845108447,3.3947,235.66,235.52,4.8607]
[1731845109755,3.3947,235.66,235.52,15.4755]
[1731845111850,3.3937,235.73,235.52,15.4755]
[1731845112053,3.3934,235.75,235.55,24.027864]
[1731845112253,28.5035,235.74,235.55,0.25098]
[1731845113036,28.5035,235.74,235.55,24.027864]
[1731845113263,0.19367462,235.69,235.52,10.6148]
[1731845113440,0.09367462,235.67,235.52,10.6148]
[1731845113755,0.09367462,235.65,235.52,14.8607]
[1731845113943,19.6,235.66,235.52,10.6148]
[1731845114140,3.3948,235.65,235.52,10.6148]
[1731845114337,23.776884,235.64,235.52,10.6148]
[1731845114957,3.8184,235.7,235.53,0.12549]
[1731845115961,3.8184,235.7,235.53,0.25098]
[1731845116158,3.8184,235.7,235.54,14.8594]
[1731845116466,23.776884,235.69,235.54,14.8594]
[1731845117037,27.595284,235.7,235.54,14.8594]
[1731845117440,23.8184,235.7,235.55,0.25098]
[1731845118049,43.4184,235.7,235.55,0.25098]
[1731845118251,43.4184,235.7,235.56,14.8582]
[1731845118940,43.4184,235.7,235.57,0.25098]
[1731845119162,3.8184,235.7,235.57,0.25098]
[1731845119460,3.8184,235.7,235.56,14.8582]
[1731845120142,19.6,235.69,235.58,14.8569]
[1731845120353,3.818,235.72,235.58,14.8569]
[1731845120845,19.6,235.71,235.58,14.8569]
[1731845121665,23.776884,235.7,235.58,14.8569]
[1731845122155,23.776884,235.66,235.54,14.8594]
[1731845122361,20.0,235.67,235.54,14.8594]
[1731845122855,3.8179,235.73,235.54,36.0872]
[1731845123062,0.09367462,235.72,235.54,36.0872]
[1731845123252,20.0,235.71,235.55,0.25098]
[1731845123766,20.0,235.71,235.55,0.12549]
[1731845124062,3.8185,235.69,235.56,14.8582]
[1731845126443,23.776884,235.7,235.56,14.8582]
[1731845127051,19.6,235.69,235.56,14.8582]
[1731845127452,23.776884,235.66,235.51,14.8613]
[1731845127767,19.6,235.65,235.51,36.0918]
[1731845128664,24.2419,235.74,235.52,24.027864]
[1731845128967,20.0,235.72,235.52,24.027864]
[1731845129667,4.2425,235.71,235.54,0.25098]
[1731845130371,4.2422,235.73,235.56,24.027864]
[1731845130748,0.4652843,235.76,235.57,5.95752032]
[1731845131087,0.4652843,235.76,235.6,24.027864]
[1731845131274,0.4652843,235.76,235.62,24.027864]
[1731845131571,0.4652843,235.76,235.65,0.12549]
[1731845132147,0.4652843,235.76,235.64,0.12549]
[1731845132148,0.4652843,235.76,235.64,0.25098]
[1731845132350,0.4652843,235.76,235.64,24.027864]
[1731845132850,0.4652843,235.76,235.64,29.56535063]
[1731845133250,0.4652843,235.76,235.66,0.25098]
[1731845134468,0.4652843,235.76,235.67,14.8512]
[1731845134969,0.4652843,235.76,235.68,0.12549]
[1731845135166,23.8417,235.75,235.62,10.6101]
[1731845135347,23.8417,235.75,235.48,52.13887446]
[1731845135348,0.21916462,235.72,235.58,4.2447]
[1731845135761,0.21916462,235.72,235.59,34.1797]
[1731845135974,0.5652843,235.76,235.59,44.7913]
[1731845135975,0.4652843,235.76,235.59,44.7913]
[1731845136869,0.4652843,235.76,235.72,2.07]
[1731845139368,0.4652843,235.76,235.72,6.3122]
[1731845139575,0.4652843,235.76,235.73,0.12549]
[1731845139752,22.4,235.9,235.73,0.12549]
[1731845139753,19.6,235.89,235.73,0.12549]
[1731845139948,19.6,235.88,235.73,0.12549]
[1731845140850,20.09367462,235.87,235.73,0.12549]
[1731845141078,23.776884,235.84,235.73,0.12549]
[1731845141271,43.8403,235.83,235.73,4.36749]
[1731845142778,43.8403,235.83,235.67,0.25098]
[1731845142976,19.6,235.82,235.67,0.25098]
[1731845143155,19.6,235.82,235.67,24.027864]
[1731845143779,19.6,235.82,235.69,0.25098]
[1731845143977,19.6,235.82,235.7,21.9762]
[1731845144180,19.6,235.82,235.71,0.25098]
[1731845144474,19.6,235.82,235.73,0.12549]
[1731845144673,4.2401,235.85,235.73,0.12549]
[1731845145781,23.839,235.9,235.75,0.25098]
[1731845145988,4.239,235.9,235.75,0.25098]
[1731845146965,4.239,235.9,235.77,0.25098]
[1731845147365,4.2381,235.95,235.77,0.25098]
[1731845147565,4.2381,235.95,235.77,24.027864]
[1731845147769,4.2381,235.95,235.79,24.027864]
[1731845148381,19.6,236.02,235.8,8.7678]
[1731845148596,4.2368,236.03,235.83,24.027864]
[1731845148789,19.6,236.08,235.85,24.027864]
[1731845149079,10.6874,236.13,235.89,24.027864]
[1731845149080,4.2361,236.07,235.89,24.027864]
[1731845149465,4.2356,236.1,235.89,24.027864]
[1731845149679,19.6,236.12,235.91,0.25098]
[1731845149680,4.2366,236.04,235.91,0.25098]
[1731845149971,4.2372,236.0,235.91,0.12549]
[1731845150170,4.7028843,235.99,235.91,0.12549]
[1731845150482,0.4652843,235.99,235.91,24.027864]
[1731845151063,0.4652843,235.99,235.93,24.027864]
[1731845151268,0.4652843,235.99,235.93,0.25098]
[1731845151780,0.4652843,235.99,235.93,0.12549]
[1731845151963,0.4652843,235.99,235.92,14.8355]
[1731845153387,0.4652843,235.99,235.93,0.12549]
[1731845153775,0.4652843,235.99,235.93,4.36389]
[1731845154662,0.4652843,235.99,235.93,14.96019]
[1731845155871,0.4652843,235.99,235.94,0.12549]
[1731845156266,0.4652843,235.99,235.93,14.96019]
[1731845156967,0.4652843,235.99,235.93,14.8347]
[1731845157174,0.4652843,235.99,235.93,10.5963]
[1731845157486,4.7028843,235.99,235.91,4.2388]
[1731845157867,19.6,236.1,235.91,14.836]
[1731845158067,19.6,236.09,235.91,14.836]
[1731845158279,19.6,236.08,235.91,14.836]
[1731845158591,0.09367462,236.05,235.91,10.5972]
[1731845158783,19.6,236.04,235.91,14.8361]
[1731845159081,0.12549,236.03,235.91,10.5972]
[1731845159290,43.902374,236.03,235.91,10.5972]
[1731845159791,28.23324862,236.0,235.86,10.5994]
[1731845159967,19.6,235.99,235.86,10.5994]
[1731845160170,20.21916462,235.98,235.86,10.5994]
[1731845160364,23.776884,235.95,235.84,30.2723]
[1731845160576,43.99604862,235.93,235.84,21.4468]
[1731845160762,43.99604862,235.93,235.81,10.6016]
[1731845160965,43.99604862,235.93,235.79,4.241]
[1731845161166,43.99604862,235.91,235.79,4.241]
[1731845161586,20.0,235.91,235.79,4.241]
[1731845161772,20.0,235.91,235.79,14.8436]
[1731845162074,23.8388,235.92,235.79,14.8436]
[1731845162276,20.0,235.91,235.79,14.8436]
[1731845162474,23.8388,235.92,235.79,14.8436]
[1731845162678,20.09367462,235.9,235.79,10.6026]
[1731845162988,0.09367462,235.85,235.73,10.605]
[1731845163290,20.09367462,235.83,235.73,10.605]
[1731845163592,23.776884,235.82,235.73,10.605]
[1731845163971,4.2407,235.81,235.73,10.605]
[1731845164684,4.2407,235.81,235.68,13.0683]
[1731845164685,20.0,235.79,235.68,13.0683]
[1731845164986,43.99604862,235.77,235.64,21.4468]
[1731845165172,0.21916462,235.75,235.61,10.6104]
[1731845165369,23.99604862,235.73,235.61,14.8547]
[1731845165887,43.99604862,235.71,235.59,4.2445]
[1731845166096,0.1,235.69,235.58,21.4468]
[1731845166291,0.09367462,235.64,235.49,13.8559]
[1731845166491,0.09367462,235.64,235.4,1.20159788]
[1731845166492,23.902374,235.6,235.44,4.2473]
[1731845166699,23.902374,235.58,235.44,4.2473]
[1731845166989,0.1,235.62,235.44,4.2473]
[1731845166990,19.6,235.57,235.44,14.8657]
[1731845167196,0.09367462,235.56,235.44,14.8657]
[1731845167491,23.87055862,235.56,235.44,14.8657]
[1731845168073,19.6,235.57,235.44,14.8657]
[1731845168619,0.1,235.65,235.44,14.8657]
[1731845168620,20.0,235.63,235.44,14.8657]
[1731845168801,0.1,235.56,235.42,21.4468]
[1731845168970,0.1,235.56,235.41,4.2477]
[1731845169570,0.1,235.56,235.4,0.4652843]
[1731845169571,20.19367462,235.54,235.4,0.4652843]
[1731845169773,0.09367462,235.5,235.4,0.4652843]
[1731845170291,23.776884,235.49,235.4,0.4652843]
[1731845170596,0.09367462,235.46,235.4,0.4652843]
[1731845170782,19.6,235.45,235.4,0.4652843]
[1731845171286,23.776884,235.44,235.4,0.4652843]
[1731845171484,23.99604862,235.42,235.4,0.4652843]
[1731845171693,19.6,235.43,235.4,0.4652843]
[1731845171694,63.59604862,235.41,235.4,0.4652843]
[1731845172197,67.624784,235.41,235.4,0.4652843]
[1731845172391,67.750274,235.41,235.4,0.4652843]
[1731845172697,67.624784,235.41,235.4,0.4652843]
[1731845172876,43.502374,235.41,235.4,0.4652843]
[1731845173284,43.376884,235.41,235.4,0.4652843]
[1731845173590,43.47055862,235.41,235.4,0.4652843]
[1731845173904,4.2466,235.48,235.4,0.4652843]
[1731845174288,0.09367462,235.47,235.4,0.4652843]
[1731845174593,0.09367462,235.45,235.4,0.4652843]
[1731845174794,0.09367462,235.43,235.4,0.4652843]
[1731845174996,19.6,235.44,235.4,0.4652843]
[1731845175295,0.12549,235.41,235.4,0.4652843]
[1731845175678,19.6,235.45,235.4,0.4652843]
[1731845176806,19.6,235.47,235.4,0.4652843]
[1731845178202,4.2463,235.5,235.4,0.4652843]
[1731845178404,19.6,235.49,235.4,0.4652843]
[1731845179885,19.6,235.48,235.4,4.7131843]
[1731845180190,19.6,235.48,235.41,0.12549]
[1731845180900,19.6,235.55,235.41,0.12549]
[1731845181099,19.6,235.54,235.41,0.12549]
[1731845181280,23.8455,235.54,235.41,0.12549]
[1731845181681,23.8455,235.54,235.4,36.9034843]
[1731845181682,0.09367462,235.53,235.4,36.9034843]
[1731845181902,23.8459,235.52,235.4,36.9034843]
[1731845182197,9.0068,235.59,235.41,0.12549]
[1731845182198,4.2455,235.54,235.41,0.12549]
[1731845182400,0.09367462,235.53,235.41,0.12549]
[1731845182580,4.2455,235.54,235.41,0.12549]
[1731845183087,0.09367462,235.53,235.41,0.12549]
[1731845183293,23.776884,235.55,235.42,14.867]
[1731845183508,19.6,235.62,235.43,32.769564]
[1731845183679,23.8436,235.65,235.43,32.769564]
[1731845183882,41.0258,235.73,235.43,32.769564]
[1731845183883,19.6,235.71,235.45,0.1]
[1731845184084,19.6,235.7,235.45,0.12549]
[1731845184381,19.6,235.69,235.46,20.45098]
[1731845184588,19.6,235.72,235.51,0.1]
[1731845184798,19.6,235.71,235.53,24.027864]
[1731845185303,9.0068,235.8,235.52,21.5701]
[1731845185304,19.6,235.78,235.55,24.027864]
[1731845185606,9.0068,235.8,235.57,24.027864]
[1731845185607,19.6,235.77,235.57,24.027864]
[1731845186308,23.8415,235.77,235.58,14.8569]
[1731845186507,23.8415,235.77,235.59,0.12549]
[1731845186998,23.8415,235.77,235.58,14.8569]
[1731845186999,0.09367462,235.74,235.58,14.8569]
[1731845187783,0.21916462,235.74,235.58,14.8569]
[1731845187987,0.09367462,235.72,235.58,14.8569]
[1731845188185,23.8421,235.74,235.59,0.12549]
[1731845188482,4.2416,235.76,235.59,23.902374]
[1731845188987,4.2416,235.76,235.6,0.12549]
[1731845189704,0.09367462,235.78,235.6,0.12549]
[1731845189891,19.6,235.77,235.62,0.12549]
[1731845190504,19.6,235.76,235.62,0.12549]
[1731845190892,23.8416,235.76,235.63,14.8537]
[1731845191091,23.8416,235.76,235.64,0.12549]
[1731845191908,23.8416,235.76,235.65,4.2435]
[1731845192132,23.776884,235.73,235.58,10.612]
[1731845192405,23.776884,235.73,235.56,8.7417]
[1731845192406,23.99604862,235.69,235.56,8.7417]
[1731845192609,20.0,235.7,235.56,12.9867]
[1731845192802,20.0,235.71,235.56,12.9867]
[1731845193008,20.0,235.69,235.56,12.9867]
[1731845193213,23.99604862,235.66,235.56,19.3547]
[1731845193509,19.6,235.65,235.56,23.5999]
[1731845193708,19.6,235.74,235.56,23.5999]
[1731845193916,4.2425,235.71,235.56,23.5999]
[1731845194515,4.2425,235.71,235.57,0.12549]
[1731845195210,23.99604862,235.68,235.56,23.5999]
[1731845195411,19.6,235.67,235.56,23.5999]
[1731845195802,23.776884,235.65,235.56,8.7417]
[1731845196106,4.2441,235.62,235.52,21.5701]
[1731845196410,4.2441,235.62,235.46,10.6174]
[1731845196411,0.21916462,235.59,235.46,10.6174]
[1731845196614,0.21916462,235.59,235.46,14.8644]
[1731845196615,43.776884,235.57,235.46,14.8644]
[1731845196819,19.6,235.58,235.46,14.8644]
[1731845197517,30.0,235.56,235.43,44.7586]
[1731845197898,19.6,235.57,235.43,44.7586]
[1731845198102,4.2444,235.6,235.43,65.9963]
[1731845198824,4.2444,235.6,235.44,24.027864]
[1731845199499,19.6,235.64,235.44,24.027864]
[1731845199816,23.844,235.63,235.46,24.027864]
[1731845200013,4.2432,235.68,235.48,24.027864]
[1731845200309,4.2432,235.68,235.48,0.25098]
[1731845200310,0.09367462,235.67,235.48,0.25098]
[1731845200503,0.09367462,235.67,235.46,0.12549]
[1731845200813,0.09367462,235.65,235.46,0.25098]
[1731845201017,20.09367462,235.65,235.46,0.12549]
[1731845201197,20.0,235.65,235.46,24.027864]
[1731845201398,23.776884,235.64,235.46,0.25098]
[1731845201609,19.6,235.66,235.43,56.73776557]
[1731845201610,20.0,235.63,235.48,24.027864]
[1731845201824,24.2436,235.65,235.6,30.0]
[1731845202115,19.6,235.64,235.6,30.0]
[1731845202792,4.2439,235.63,235.6,30.0]
[1731845203595,19.6,235.7,235.6,30.0]
[1731845203796,23.8428,235.69,235.6,34.2443]
[1731845203996,4.2425,235.71,235.6,44.8555]
[1731845205330,4.2425,235.71,235.62,4.2441]
[1731845205916,4.2425,235.71,235.6,44.8556]
[1731845206926,8.783,235.77,235.6,44.8556]
[1731845206927,23.8416,235.76,235.61,0.12549]
[1731845207116,19.6,235.75,235.61,0.12549]
[1731845207495,4.2416,235.76,235.61,0.12549]
[1731845207815,4.2416,235.76,235.61,0.25098]
[1731845208605,19.6,235.75,235.61,0.12549]
[1731845209133,19.6,235.75,235.63,0.12549]
[1731845209296,4.2416,235.76,235.63,0.25098]
[1731845209504,4.2407,235.81,235.63,0.25098]
[1731845209720,19.6,235.8,235.63,0.25098]
[1731845209921,20.0,235.79,235.63,0.25098]
[1731845210711,4.2412,235.78,235.65,0.12549]
[1731845210911,23.776884,235.77,235.65,0.12549]
[1731845211923,23.8416,235.76,235.66,14.8519]
[1731845213315,23.8416,235.76,235.66,10.6085]
[1731845213721,19.6,235.76,235.67,0.12549]
[1731845213909,4.2408,235.81,235.67,0.12549]
[1731845214100,19.6,235.8,235.67,0.12549]
[1731845214600,4.33447462,235.81,235.8,10.4]
[1731845215003,28.23684862,235.81,235.8,10.4]
[1731845215201,4.2394,235.88,235.8,10.4]
[1731845216703,4.2394,235.88,235.8,14.6407]
[1731845216908,4.2381,235.95,235.81,0.12549]
[1731845217125,10.5936,235.99,235.82,4.2405]
[1731845217914,0.09367462,235.98,235.82,4.2405]
[1731845218117,10.5936,235.99,235.82,4.2405]
[1731845218339,20.0,235.98,235.82,14.8418]
[1731845218517,20.0,235.98,235.81,0.12549]